fUSD/lending_fUSD_20250120
["ID","MTS","AMOUNT","RATE_DAILY","PERIOD"]
[349725705,1737396638157,-602.94,0.00020159,2]
[349725706,1737396638167,-602.94,0.00020159,2]
[349725708,1737396638177,-602.94,0.00020159,2]
[349725710,1737396638186,-362.41682986,0.00020167,2]
[349725711,1737396638196,-380.74060403,0.00020167,2]
[349725712,1737396638206,-500.0,0.00020168,2]
[349725713,1737396638216,-500.0,0.00020168,2]
[349725715,1737396638225,-2188.37321638,0.00020168,2]
[349725736,1737396639874,-500.0,0.0002007,2]
[349725737,1737396639884,-17.7334,0.00020071,2]
[349725738,1737396639963,-470.56482525,0.00020071,2]
[349725739,1737396640075,-2953.01732864,0.00020071,2]
[349725740,1737396640085,-396.54678362,0.00020168,2]
[349725741,1737396640094,-500.0,0.00020168,2]
[349725742,1737396640104,-1667.17,0.00020168,2]
[349725743,1737396640114,-500.0,0.00020168,2]
[349725744,1737396640124,-683.26,0.00020168,2]
[349725745,1737396640134,-500.0,0.00020168,2]
[349725746,1737396640143,-649.53403,0.00020168,2]
[349725747,1737396640152,-155.672389,0.00020168,2]
[349725748,1737396640162,-1659.68,0.00020168,2]
[349725749,1737396640171,-500.0,0.00020168,2]
[349725750,1737396640181,-162.29852,0.00020168,2]
[349725751,1737396640191,-1240.18,0.00020168,2]
[349725752,1737396640200,-500.0,0.00020168,2]
[349725753,1737396640210,-500.0,0.00020168,2]
[349725754,1737396640221,-759.868947,0.00020168,2]
[349725755,1737396640231,-481.52771057,0.00020168,2]
[349725756,1737396640242,-500.0,0.00020168,2]
[349725757,1737396640251,-500.0,0.00020168,2]
[349725758,1737396640261,-500.0,0.00020168,2]
[349725759,1737396640270,-1242.16889127,0.00020168,2]
[349725760,1737396640290,-1905.47110873,0.00020168,2]
[349725761,1737396640301,-614.7,0.00020168,2]
[349725762,1737396640311,-1043.09,0.00020168,2]
[349725763,1737396640321,-500.0,0.00020168,2]
[349725764,1737396640332,-500.0,0.00020168,2]
[349725765,1737396640343,-500.0,0.00020168,2]
[349725766,1737396640353,-1142.07295306,0.00020168,2]
[349725767,1737396640366,-1069.35191563,0.00020168,2]
[349725768,1737396640379,-272.17317358,0.00020168,2]
[349725769,1737396640391,-277.33508513,0.00020168,2]
[349725771,1737396640404,-430.1668726,0.00020168,2]
[349725773,1737396640414,-500.0,0.00020168,2]
[349725774,1737396640423,-1705.4,0.00020168,2]
[349725776,1737396640434,-836.9,0.00020168,2]
[349725778,1737396640444,-188.706662,0.00020168,2]
[349725780,1737396640453,-1674.55,0.00020168,2]
[349725782,1737396640463,-987.19,0.00020168,2]
[349725784,1737396640473,-282.1366798,0.00020168,2]
[349725787,1737396640490,-362.0533202,0.00020168,2]
[349725789,1737396640501,-1096.15,0.00020168,2]
[349725791,1737396640511,-2231.69,0.00020168,2]
[349725793,1737396640521,-2106.31,0.00020168,2]
[349725795,1737396640530,-500.0,0.00020168,2]
[349725797,1737396640543,-167.10562,0.00020168,2]
[349725799,1737396640553,-222.61421242,0.00020168,2]
[349725801,1737396640565,-277.38578758,0.00020168,2]
[349725803,1737396640576,-40.19421242,0.00020168,2]
[349725807,1737396640601,-2192.65578758,0.00020168,2]
[349725809,1737396640611,-1194.9,0.00020168,2]
[349725810,1737396640621,-1269.12,0.00020168,2]
[349725813,1737396640632,-500.0,0.00020168,2]
[349725815,1737396640642,-500.0,0.00020168,2]
[349725817,1737396640653,-500.0,0.00020168,2]
[349725819,1737396640662,-1239.66,0.00020168,2]
[349725820,1737396640672,-957.57,0.00020168,2]
[349725822,1737396640682,-641.53,0.00020168,2]
[349725825,1737396640692,-682.87,0.00020168,2]
[349725826,1737396640702,-500.0,0.00020168,2]
[349725828,1737396640712,-1931.76,0.00020168,2]
[349725830,1737396640722,-500.0,0.00020168,2]
[349725832,1737396640731,-2317.29,0.00020168,2]
[349725834,1737396640741,-805.6,0.00020168,2]
[349725836,1737396640752,-1498.45,0.00020168,2]
[349725838,1737396640761,-716.54,0.00020168,2]
[349725840,1737396640771,-500.0,0.00020168,2]
[349725842,1737396640780,-500.0,0.00020168,2]
[349725844,1737396640796,-500.0,0.00020168,2]
[349725846,1737396640806,-505.24,0.00020168,2]
[349725848,1737396640815,-500.0,0.00020168,2]
[349725850,1737396640824,-307.99198039,0.00020168,2]
[349725853,1737396640836,-192.00801961,0.00020168,2]
[349725855,1737396640845,-58.852337,0.00020168,2]
[349725878,1737396641075,-441.147663,0.00020168,2]
[349725880,1737396641084,-2185.86,0.00020168,2]
[349725882,1737396641094,-500.0,0.00020168,2]
[349725883,1737396641103,-500.0,0.00020168,2]
[349725885,1737396641113,-500.0,0.00020168,2]
[349725887,1737396641122,-500.0,0.00020168,2]
[349725889,1737396641132,-571.3,0.00020168,2]
[349725891,1737396641141,-500.0,0.00020168,2]
[349725893,1737396641150,-500.0,0.00020168,2]
[349725895,1737396641160,-500.0,0.00020169,2]
[349725897,1737396641170,-500.0,0.00020169,2]
[349725899,1737396641180,-24.34251715,0.00020169,2]
[349725901,1737396641195,-276.24093824,0.00020169,2]
[349725903,1737396641205,-500.0,0.00020169,2]
[349725905,1737396641215,-500.0,0.00020169,2]
[349725907,1737396641224,-500.0,0.00020169,2]
[349725909,1737396641234,-500.0,0.00020169,2]
[349725911,1737396641243,-503.75850882,0.00020169,2]
[349725913,1737396641253,-500.0,0.00020169,2]
[349725915,1737396641262,-500.0,0.00020169,2]
[349725917,1737396641271,-500.0,0.00020169,2]
[349725919,1737396641280,-500.0,0.00020169,2]
[349725920,1737396641294,-500.0,0.00020169,2]
[349725922,1737396641304,-500.0,0.00020169,2]
[349725924,1737396641313,-500.0,0.00020169,2]
[349725926,1737396641322,-500.0,0.00020169,2]
[349725928,1737396641332,-500.0,0.00020169,2]
[349725930,1737396641341,-500.0,0.00020169,2]
[349725932,1737396641350,-500.0,0.00020169,2]
[349725934,1737396641359,-741.91,0.00020169,2]
[349725936,1737396641369,-508.02660484,0.00020169,2]
[349725938,1737396641378,-504.17519906,0.00020169,2]
[349725940,1737396641388,-500.0,0.00020169,2]
[349725942,1737396641397,-500.0,0.00020169,2]
[349725944,1737396641407,-500.0,0.00020169,2]
[349725946,1737396641416,-500.0,0.00020169,2]
[349725947,1737396641426,-500.0,0.00020169,2]
[349725950,1737396641435,-500.0,0.00020169,2]
[349725951,1737396641446,-507.67809087,0.00020169,2]
[349725953,1737396641456,-500.0,0.00020169,2]
[349725955,1737396641465,-503.03798398,0.00020169,2]
[349725957,1737396641475,-500.0,0.00020169,2]
[349725959,1737396641485,-500.0,0.00020169,2]
[349725961,1737396641495,-500.0,0.00020169,2]
[349725963,1737396641504,-500.0,0.00020169,2]
[349725965,1737396641514,-500.0,0.00020169,2]
[349725967,1737396641524,-500.0,0.00020169,2]
[349725969,1737396641536,-500.0,0.00020169,2]
[349725971,1737396641545,-500.0,0.00020169,2]
[349725973,1737396641555,-500.0,0.00020169,2]
[349725975,1737396641564,-500.0,0.00020169,2]
[349725977,1737396641573,-500.0,0.00020169,2]
[349725979,1737396641583,-500.0,0.00020169,2]
[349725981,1737396641592,-500.0,0.00020169,2]
[349725983,1737396641602,-354.71300553,0.00020169,2]
[349725985,1737396641612,-509.5065087,0.00020169,2]
[349725987,1737396641621,-500.0,0.00020169,2]
[349725989,1737396641631,-500.0,0.00020169,2]
[349725991,1737396641640,-500.0,0.00020169,2]
[349725993,1737396641650,-500.0,0.00020169,2]
[349725995,1737396641659,-500.0,0.00020169,2]
[349725997,1737396641669,-500.0,0.00020169,2]
[349725999,1737396641679,-185.99393113,0.00020169,2]
[349726001,1737396641688,-500.0,0.00020169,2]
[349726003,1737396641699,-500.0,0.00020169,2]
[349726005,1737396641710,-500.0,0.00020169,2]
[349726007,1737396641719,-500.0,0.00020169,2]
[349726009,1737396641728,-500.0,0.00020169,2]
[349726011,1737396641738,-500.0,0.00020169,2]
[349726013,1737396641749,-500.0,0.00020169,2]
[349726015,1737396641759,-500.0,0.00020169,2]
[349726016,1737396641768,-500.0,0.00020169,2]
[349726017,1737396641777,-500.0,0.00020169,2]
[349726018,1737396641788,-500.0,0.00020169,2]
[349726019,1737396641797,-500.0,0.00020169,2]
[349726020,1737396641806,-242.49123009,0.00020169,2]
[349726030,1737396641815,-500.0,0.00020169,2]
[349726032,1737396641979,-500.0,0.00020169,2]
[349726034,1737396641988,-500.0,0.00020169,2]
[349726036,1737396641998,-500.0,0.00020169,2]
[349726038,1737396642008,-500.0,0.00020169,2]
[349726039,1737396642019,-500.0,0.00020169,2]
[349726041,1737396642029,-500.0,0.00020169,2]
[349726043,1737396642043,-500.0,0.00020169,2]
[349726045,1737396642052,-500.0,0.00020169,2]
[349726047,1737396642062,-500.0,0.00020169,2]
[349726049,1737396642071,-500.0,0.00020169,2]
[349726051,1737396642080,-500.0,0.00020169,2]
[349726053,1737396642090,-500.0,0.00020169,2]
[349726055,1737396642099,-500.0,0.00020169,2]
[349726057,1737396642109,-500.0,0.00020169,2]
[349726059,1737396642118,-500.0,0.00020169,2]
[349726061,1737396642129,-500.0,0.00020169,2]
[349726063,1737396642138,-500.0,0.00020169,2]
[349726065,1737396642148,-500.0,0.00020169,2]
[349726067,1737396642157,-500.0,0.00020169,2]
[349726069,1737396642167,-500.0,0.00020169,2]
[349726071,1737396642177,-500.0,0.00020169,2]
[349726072,1737396642187,-500.0,0.00020169,2]
[349726074,1737396642196,-500.0,0.00020169,2]
[349726076,1737396642206,-500.0,0.00020169,2]
[349726078,1737396642216,-500.0,0.00020169,2]
[349726080,1737396642226,-500.0,0.00020169,2]
[349726082,1737396642236,-500.0,0.00020169,2]
[349726084,1737396642246,-500.0,0.00020169,2]
[349726086,1737396642255,-500.0,0.00020169,2]
[349726088,1737396642265,-500.0,0.00020169,2]
[349726090,1737396642275,-500.0,0.00020169,2]
[349726092,1737396642288,-500.0,0.00020169,2]
[349726094,1737396642298,-500.0,0.00020169,2]
[349726096,1737396642308,-500.0,0.00020169,2]
[349726098,1737396642318,-500.0,0.00020169,2]
[349726100,1737396642328,-500.0,0.00020169,2]
[349726102,1737396642337,-500.0,0.00020169,2]
[349726103,1737396642347,-500.0,0.00020169,2]
[349726105,1737396642357,-500.0,0.00020169,2]
[349726107,1737396642367,-500.0,0.00020169,2]
[349726109,1737396642377,-500.0,0.00020169,2]
[349726110,1737396642387,-500.0,0.00020169,2]
[349726112,1737396642397,-500.0,0.00020169,2]
[349726114,1737396642407,-500.0,0.00020169,2]
[349726116,1737396642417,-500.0,0.00020169,2]
[349726118,1737396642427,-500.0,0.00020169,2]
[349726119,1737396642437,-500.0,0.00020169,2]
[349726121,1737396642447,-500.0,0.00020169,2]
[349726123,1737396642457,-500.0,0.00020169,2]
[349726125,1737396642466,-500.0,0.00020169,2]
[349726127,1737396642476,-500.0,0.00020169,2]
[349726129,1737396642487,-505.65230169,0.00020169,2]
[349726130,1737396642497,-513.69794764,0.00020169,2]
[349726132,1737396642509,-500.0,0.00020169,2]
[349726133,1737396642519,-500.0,0.00020169,2]
[349726134,1737396642532,-141.61702614,0.00020169,2]
[349726138,1737396642891,-500.0,0.00020168,2]
[349726139,1737396642902,-500.0,0.00020168,2]
[349726140,1737396642912,-358.38297386,0.00020169,2]
[349726141,1737396642922,-500.0,0.00020169,2]
[349726142,1737396642932,-500.0,0.00020169,2]
[349726143,1737396642948,-500.0,0.00020169,2]
[349726144,1737396642957,-500.0,0.00020169,2]
[349726145,1737396642966,-500.0,0.00020169,2]
[349726146,1737396642976,-500.0,0.00020169,2]
[349726147,1737396642986,-263.68165746,0.00020169,2]
[349726148,1737396642996,-500.0,0.00020169,2]
[349726149,1737396643005,-500.0,0.00020169,2]
[349726150,1737396643015,-500.0,0.00020169,2]
[349726151,1737396643025,-500.0,0.00020169,2]
[349726152,1737396643038,-436.21337758,0.00020169,2]
[349726154,1737396643051,-63.78662242,0.00020169,2]
[349726155,1737396643061,-500.0,0.00020169,2]
[349726157,1737396643070,-500.0,0.00020169,2]
[349726158,1737396643080,-505.43611006,0.00020169,2]
[349726159,1737396643090,-429.18610459,0.00020169,2]
[349726160,1737396643100,-500.0,0.00020169,2]
[349726162,1737396643111,-500.0,0.00020169,2]
[349726164,1737396643120,-500.0,0.00020169,2]
[349726166,1737396643130,-500.0,0.00020169,2]
[349726168,1737396643140,-500.0,0.00020169,2]
[349726170,1737396643149,-500.0,0.00020169,2]
[349726172,1737396643159,-500.0,0.00020169,2]
[349726174,1737396643168,-500.0,0.00020169,2]
[349726176,1737396643178,-338.35049807,0.00020169,2]
[349726178,1737396643189,-423.66024233,0.00020169,2]
[349726180,1737396643198,-500.0,0.00020169,2]
[349726182,1737396643207,-500.0,0.00020169,2]
[349726184,1737396643216,-500.0,0.00020169,2]
[349726186,1737396643226,-252.95350642,0.00020169,2]
[349726188,1737396643238,-247.04649358,0.00020169,2]
[349726190,1737396643247,-500.0,0.00020169,2]
[349726192,1737396643257,-500.0,0.00020169,2]
[349726194,1737396643267,-177.54801677,0.00020169,2]
[349726196,1737396643276,-333.71716556,0.00020169,2]
[349726198,1737396643290,-7.3416851,0.00020169,2]
[349726200,1737396643299,-321.28312328,0.00020169,2]
[349726202,1737396643311,-178.71687672,0.00020169,2]
[349726204,1737396643320,-505.90113846,0.00020169,2]
[349726206,1737396643330,-500.0,0.00020169,2]
[349726208,1737396643340,-500.0,0.00020169,2]
[349726210,1737396643349,-500.0,0.00020169,2]
[349726212,1737396643360,-500.0,0.00020169,2]
[349726214,1737396643370,-508.71621178,0.00020169,2]
[349726216,1737396643380,-500.0,0.00020169,2]
[349726218,1737396643390,-510.0116926,0.00020169,2]
[349726220,1737396643400,-500.0,0.00020169,2]
[349726222,1737396643410,-500.0,0.00020169,2]
[349726224,1737396643420,-571.86489479,0.00020169,2]
[349726226,1737396643430,-500.0,0.00020169,2]
[349726228,1737396643439,-500.0,0.00020169,2]
[349726230,1737396643449,-500.0,0.00020169,2]
[349726231,1737396643458,-500.0,0.00020169,2]
[349726233,1737396643468,-500.0,0.00020169,2]
[349726236,1737396643478,-500.0,0.00020169,2]
[349726237,1737396643487,-500.0,0.00020169,2]
[349726239,1737396643497,-500.0,0.00020169,2]
[349726241,1737396643506,-500.0,0.00020169,2]
[349726243,1737396643516,-53.82104565,0.00020169,2]
[349726246,1737396643529,-458.44242776,0.00020169,2]
[349726248,1737396643540,-500.0,0.00020169,2]
[349726250,1737396643550,-500.0,0.00020169,2]
[349726252,1737396643560,-500.0,0.00020169,2]
[349726254,1737396643569,-500.0,0.00020169,2]
[349726256,1737396643578,-500.0,0.00020169,2]
[349726258,1737396643587,-500.0,0.00020169,2]
[349726260,1737396643597,-500.0,0.00020169,2]
[349726262,1737396643606,-500.0,0.00020169,2]
[349726264,1737396643616,-287.69357273,0.00020169,2]
[349726266,1737396643626,-500.0,0.00020169,2]
[349726268,1737396643636,-771.36,0.00020169,2]
[349726270,1737396643645,-236.26190274,0.00020169,2]
[349726273,1737396643666,-332.00153955,0.00020169,2]
[349726275,1737396643675,-500.0,0.00020169,2]
[349726277,1737396643684,-500.0,0.00020169,2]
[349726278,1737396643694,-58.17811336,0.00020169,2]
[349726281,1737396643705,-441.82188664,0.00020169,2]
[349726282,1737396643714,-500.0,0.00020169,2]
[349726284,1737396643723,-500.0,0.00020169,2]
[349726286,1737396643733,-72.19091464,0.00020169,2]
[349726288,1737396643744,-427.80908536,0.00020169,2]
[349726290,1737396643754,-233.11091464,0.00020169,2]
[349726489,1737396645754,-500.0,0.00020168,2]
[349726491,1737396645765,-188.706661,0.00020168,2]
[349726493,1737396645775,-500.0,0.00020168,2]
[349726495,1737396645785,-266.88908536,0.00020169,2]
[349726497,1737396645797,-1322.69,0.00020169,2]
[349726499,1737396645806,-500.0,0.00020169,2]
[349726501,1737396645816,-500.0,0.00020169,2]
[349726503,1737396645826,-510.31,0.00020169,2]
[349726505,1737396645835,-500.0,0.00020169,2]
[349726507,1737396645846,-284.95554845,0.00020169,2]
[349726509,1737396645858,-215.04445155,0.00020169,2]
[349726511,1737396645868,-500.0,0.00020169,2]
[349726513,1737396645878,-800.6,0.00020169,2]
[349726515,1737396645887,-506.99809768,0.00020169,2]
[349726516,1737396645897,-500.0,0.00020169,2]
[349726517,1737396645906,-500.0,0.00020169,2]
[349726518,1737396645916,-500.0,0.00020169,2]
[349726519,1737396645926,-500.0,0.00020169,2]
[349726520,1737396645937,-500.0,0.00020169,2]
[349726521,1737396645952,-219.12933308,0.00020169,2]
[349726522,1737396645964,-694.1721999,0.00020169,2]
[349726524,1737396645977,-453.72846702,0.00020169,2]
[349726526,1737396645986,-500.0,0.00020169,2]
[349726528,1737396645998,-500.0,0.00020169,2]
[349726530,1737396646008,-500.0,0.00020169,2]
[349726532,1737396646019,-500.0,0.00020169,2]
[349726534,1737396646029,-500.0,0.00020169,2]
[349726536,1737396646045,-759.93,0.00020169,2]
[349726538,1737396646055,-505.78132252,0.00020169,2]
[349726540,1737396646066,-169.14021046,0.00020169,2]
[349726542,1737396646079,-330.85978954,0.00020169,2]
[349726544,1737396646088,-296.71387146,0.00020169,2]
[349726548,1737396646117,-2568.4895885,0.00020169,2]
[349726551,1737396646134,-2587.37654004,0.00020169,2]
[349726553,1737396646144,-503.13034414,0.00020169,2]
[349726555,1737396646154,-500.0,0.00020169,2]
[349726557,1737396646164,-500.0,0.00020169,2]
[349726559,1737396646173,-230.66197717,0.00020169,2]
[349726561,1737396646185,-269.33802283,0.00020169,2]
[349726563,1737396646194,-500.0,0.00020169,2]
[349726565,1737396646204,-2090.22,0.00020169,2]
[349726567,1737396646214,-500.0,0.00020169,2]
[349726569,1737396646224,-500.0,0.00020169,2]
[349726571,1737396646234,-500.0,0.00020169,2]
[349726573,1737396646245,-500.0,0.00020169,2]
[349726575,1737396646254,-500.0,0.00020169,2]
[349726577,1737396646264,-500.0,0.00020169,2]
[349726579,1737396646274,-500.0,0.00020169,2]
[349726581,1737396646283,-790.5,0.00020169,2]
[349726583,1737396646298,-500.0,0.00020169,2]
[349726585,1737396646307,-515.74284783,0.00020169,2]
[349726587,1737396646317,-500.0,0.00020169,2]
[349726589,1737396646326,-1387.85,0.00020169,2]
[349726591,1737396646336,-500.0,0.00020169,2]
[349726593,1737396646346,-500.0,0.00020169,2]
[349726595,1737396646357,-500.0,0.00020169,2]
[349726597,1737396646367,-1166.49,0.00020169,2]
[349726599,1737396646376,-500.0,0.00020169,2]
[349726601,1737396646386,-500.0,0.00020169,2]
[349726603,1737396646396,-500.0,0.00020169,2]
[349726605,1737396646407,-500.0,0.00020169,2]
[349726607,1737396646416,-500.0,0.00020169,2]
[349726609,1737396646426,-500.0,0.00020169,2]
[349726611,1737396646436,-265.26626269,0.00020169,2]
[349726627,1737396646585,-500.0,0.00020169,2]
[349726629,1737396646595,-2221.9,0.00020169,2]
[349726631,1737396646604,-500.0,0.00020169,2]
[349726633,1737396646614,-500.0,0.00020169,2]
[349726635,1737396646623,-500.0,0.00020169,2]
[349726637,1737396646633,-500.0,0.00020169,2]
[349726639,1737396646643,-500.0,0.00020169,2]
[349726641,1737396646652,-500.0,0.00020169,2]
[349726642,1737396646661,-500.0,0.00020169,2]
[349726645,1737396646671,-500.0,0.00020169,2]
[349726647,1737396646681,-1206.49,0.00020169,2]
[349726649,1737396646691,-500.0,0.00020169,2]
[349726651,1737396646700,-610.0,0.00020169,2]
[349726652,1737396646710,-500.0,0.00020169,2]
[349726654,1737396646719,-500.0,0.00020169,2]
[349726656,1737396646728,-500.0,0.00020169,2]
[349726658,1737396646738,-500.0,0.00020169,2]
[349726659,1737396646747,-595.13,0.00020169,2]
[349726661,1737396646757,-500.0,0.00020169,2]
[349726662,1737396646767,-500.0,0.00020169,2]
[349726664,1737396646776,-500.0,0.00020169,2]
[349726666,1737396646786,-500.0,0.00020169,2]
[349726668,1737396646799,-529.53,0.00020169,2]
[349726669,1737396646808,-500.0,0.00020169,2]
[349726671,1737396646818,-500.0,0.00020169,2]
[349726673,1737396646828,-500.0,0.00020169,2]
[349726674,1737396646838,-500.0,0.00020169,2]
[349726676,1737396646850,-500.0,0.00020169,2]
[349726678,1737396646859,-500.0,0.00020169,2]
[349726679,1737396646868,-728.3,0.00020169,2]
[349726681,1737396646878,-500.0,0.00020169,2]
[349726683,1737396646888,-500.0,0.00020169,2]
[349726684,1737396646898,-500.0,0.00020169,2]
[349726686,1737396646908,-500.0,0.00020169,2]
[349726688,1737396646917,-500.0,0.00020169,2]
[349726689,1737396646926,-500.0,0.00020169,2]
[349726691,1737396646938,-500.0,0.00020169,2]
[349726692,1737396646951,-500.0,0.00020169,2]
[349726694,1737396646960,-730.48,0.00020169,2]
[349726696,1737396646970,-500.0,0.00020169,2]
[349726698,1737396646979,-500.0,0.00020169,2]
[349726699,1737396646990,-500.0,0.00020169,2]
[349726701,1737396647000,-500.0,0.00020169,2]
[349726703,1737396647010,-500.0,0.00020169,2]
[349726704,1737396647022,-500.0,0.00020169,2]
[349726706,1737396647032,-500.0,0.00020169,2]
[349726708,1737396647044,-500.0,0.00020169,2]
[349726709,1737396647054,-500.0,0.00020169,2]
[349726711,1737396647063,-500.0,0.00020169,2]
[349726713,1737396647073,-500.0,0.00020169,2]
[349726714,1737396647083,-500.0,0.00020169,2]
[349726716,1737396647093,-500.0,0.00020169,2]
[349726718,1737396647103,-500.0,0.00020169,2]
[349726720,1737396647112,-546.52227783,0.00020169,2]
[349726721,1737396647122,-500.0,0.00020169,2]
[349726723,1737396647131,-500.0,0.00020169,2]
[349726725,1737396647141,-500.0,0.00020169,2]
[349726727,1737396647150,-500.0,0.00020169,2]
[349726728,1737396647160,-500.0,0.00020169,2]
[349726730,1737396647169,-500.0,0.00020169,2]
[349726732,1737396647178,-500.0,0.00020169,2]
[349726733,1737396647188,-500.0,0.00020169,2]
[349726735,1737396647198,-500.0,0.00020169,2]
[349726737,1737396647207,-500.0,0.00020169,2]
[349726739,1737396647217,-500.0,0.00020169,2]
[349726741,1737396647226,-500.0,0.00020169,2]
[349726742,1737396647235,-612.08,0.00020169,2]
[349726744,1737396647245,-500.0,0.00020169,2]
[349726746,1737396647255,-500.0,0.00020169,2]
[349726748,1737396647265,-500.0,0.00020169,2]
[349726749,1737396647275,-500.0,0.00020169,2]
[349726751,1737396647284,-537.59183584,0.00020169,2]
[349726753,1737396647297,-500.0,0.00020169,2]
[349726755,1737396647307,-540.91,0.00020169,2]
[349726756,1737396647316,-500.0,0.00020169,2]
[349726758,1737396647326,-500.0,0.00020169,2]
[349726760,1737396647335,-500.0,0.00020169,2]
[349726762,1737396647345,-500.0,0.00020169,2]
[349726763,1737396647356,-1340.89,0.00020169,2]
[349726765,1737396647365,-500.0,0.00020169,2]
[349726767,1737396647374,-500.0,0.00020169,2]
[349726769,1737396647384,-2517.4,0.00020169,2]
[349726770,1737396647394,-508.85299448,0.00020169,2]
[349726772,1737396647403,-500.0,0.00020169,2]
[349726774,1737396647413,-500.0,0.00020169,2]
[349726776,1737396647422,-500.0,0.00020169,2]
[349726778,1737396647432,-500.0,0.00020169,2]
[349726779,1737396647442,-502.26465659,0.00020169,2]
[349726781,1737396647451,-500.0,0.00020169,2]
[349726783,1737396647461,-500.0,0.00020169,2]
[349726785,1737396647471,-500.0,0.0002017,2]
[349726786,1737396647480,-500.0,0.0002017,2]
[349726788,1737396647489,-500.0,0.0002017,2]
[349726790,1737396647499,-500.0,0.0002017,2]
[349726792,1737396647509,-500.0,0.0002017,2]
[349726793,1737396647518,-500.0,0.0002017,2]
[349726795,1737396647528,-500.0,0.0002017,2]
[349726797,1737396647537,-500.0,0.0002017,2]
[349726799,1737396647548,-500.0,0.0002017,2]
[349726800,1737396647558,-500.0,0.0002017,2]
[349726802,1737396647567,-500.0,0.0002017,2]
[349726804,1737396647576,-500.0,0.0002017,2]
[349726806,1737396647585,-500.0,0.0002017,2]
[349726807,1737396647595,-500.0,0.0002017,2]
[349726809,1737396647604,-500.0,0.0002017,2]
[349726811,1737396647613,-500.0,0.0002017,2]
[349726813,1737396647622,-500.0,0.0002017,2]
[349726814,1737396647631,-500.0,0.0002017,2]
[349726816,1737396647641,-500.0,0.0002017,2]
[349726818,1737396647650,-500.0,0.0002017,2]
[349726820,1737396647661,-500.0,0.0002017,2]
[349726822,1737396647670,-500.0,0.0002017,2]
[349726824,1737396647679,-500.0,0.0002017,2]
[349726826,1737396647689,-500.0,0.0002017,2]
[349726828,1737396647699,-500.0,0.0002017,2]
[349726830,1737396647708,-500.0,0.0002017,2]
[349726831,1737396647717,-500.0,0.0002017,2]
[349726832,1737396647726,-500.0,0.0002017,2]
[349726833,1737396647735,-500.0,0.0002017,2]
[349726834,1737396647744,-500.0,0.0002017,2]
[349726835,1737396647753,-500.0,0.0002017,2]
[349726836,1737396647762,-500.0,0.0002017,2]
[349726837,1737396647771,-500.0,0.0002017,2]
[349726838,1737396647780,-500.0,0.0002017,2]
[349726839,1737396647789,-500.0,0.0002017,2]
[349726840,1737396647800,-500.0,0.0002017,2]
[349726841,1737396647810,-500.0,0.0002017,2]
[349726842,1737396647819,-500.0,0.0002017,2]
[349726843,1737396647829,-500.0,0.0002017,2]
[349726844,1737396647838,-500.0,0.0002017,2]
[349726845,1737396647848,-290.42,0.0002017,2]
[349726847,1737396647858,-500.0,0.0002017,2]
[349726849,1737396647868,-500.0,0.0002017,2]